bitfinex-derivatives/quotes_BNBF0:USTF0_20251010
["timestamp","ask_amount","ask_price","bid_price","bid_amount"]
[1760124085701,0.14177838,1229.5,1225.9,0.54509966]
[1760124085901,0.14177838,1229.5,1226.0,0.54509966]
[1760124086096,0.14177838,1229.5,1226.1,0.54509966]
[1760124086300,0.14177838,1229.5,1226.2,0.54509966]
[1760124086603,1.94673086,1229.1,1226.3,0.54506437]
[1760124086803,1.94673086,1229.1,1226.4,0.54506437]
[1760124087003,1.94673086,1229.1,1226.0,0.60606306]
[1760124087201,1.94673086,1229.2,1226.1,0.54509846]
[1760124087400,1.94673086,1229.2,1226.2,0.54509846]
[1760124087602,1.94673086,1229.2,1226.3,0.54509846]
[1760124087798,1.94673086,1229.2,1225.8,0.60606306]
[1760124087999,1.94673086,1229.2,1225.9,0.54506117]
[1760124088204,1.94673086,1228.9,1226.0,0.54506117]
[1760124088403,1.94673086,1228.9,1226.1,0.54506117]
[1760124088604,1.94673086,1229.0,1226.2,0.54506117]
[1760124088804,1.94673086,1229.0,1225.7,0.60606306]
[1760124089000,1.94673086,1229.0,1225.8,0.54509719]
[1760124089303,1.94673086,1229.3,1225.9,0.54509719]
[1760124089504,1.94673086,1229.3,1226.0,0.54509719]
[1760124089808,1.94673086,1229.3,1226.1,0.54509719]
[1760124090005,1.94673086,1229.3,1225.7,0.60606306]
[1760124090203,1.94673086,1229.3,1225.8,0.54521063]
[1760124090403,1.94673086,1229.3,1225.9,0.54521063]
[1760124090703,1.94673086,1228.7,1226.0,0.54521063]
[1760124090903,1.94673086,1228.7,1225.7,0.60606306]
[1760124091105,1.94673086,1228.7,1225.8,0.54523609]
[1760124091301,1.94673086,1228.7,1225.9,0.54523609]
[1760124091505,1.94673086,1228.7,1226.0,0.54523609]
[1760124091702,1.94673086,1228.8,1225.7,0.60606306]
[1760124091902,1.94673086,1228.8,1225.8,0.54521597]
[1760124092106,1.94673086,1228.8,1225.9,0.54521597]
[1760124092403,1.94673086,1228.8,1225.4,0.60606306]
[1760124092704,1.94673086,1228.8,1225.5,0.54528169]
[1760124092907,1.94673086,1228.7,1225.6,0.54528169]
[1760124093206,1.94673086,1228.7,1225.7,0.54528169]
[1760124093405,1.94673086,1228.7,1225.8,0.54528169]
[1760124093606,1.94673086,1228.7,1225.9,0.54528169]
[1760124093803,1.94673086,1228.7,1225.5,0.60606306]
[1760124094106,1.94673086,1228.7,1225.6,0.5406986]
[1760124094306,1.94673086,1228.9,1225.7,0.5406986]
[1760124094505,1.94673086,1228.9,1225.1,0.60606306]
[1760124094706,1.94673086,1228.9,1225.2,0.54088287]
[1760124094911,1.94673086,1228.8,1225.3,0.54088287]
[1760124095105,1.94673086,1228.8,1225.1,0.60606306]
[1760124095106,1.94673086,1228.8,1224.7,0.74794346]
[1760124095308,1.94673086,1228.3,1224.8,0.54100597]
[1760124095505,1.94673086,1228.3,1224.9,0.54100597]
[1760124095705,1.94673086,1228.3,1225.0,0.54100597]
[1760124095904,0.14177838,1229.5,1224.7,0.1418804]
[1760124095905,1.94673086,1227.9,1224.7,0.1418804]
[1760124096206,1.94673086,1227.9,1224.8,0.54104553]
[1760124096409,1.94673086,1227.9,1224.9,0.54104553]
[1760124096606,1.94673086,1227.9,1224.4,0.14194667]
[1760124096907,0.14177838,1229.5,1224.4,0.14194667]
[1760124096908,1.94673086,1227.7,1224.5,0.54097142]
[1760124097105,1.94673086,1227.7,1224.6,0.54097142]
[1760124097314,1.94673086,1227.7,1224.4,0.14194667]
[1760124097512,1.94673086,1227.7,1224.5,0.54065193]
[1760124097709,1.94673086,1227.7,1224.6,0.54065215]
[1760124097913,1.94673086,1227.7,1224.3,0.14195246]
[1760124097914,1.94673086,1227.7,1224.7,0.54065215]
[1760124098213,1.94673086,1227.7,1224.8,0.54065215]
[1760124098411,1.94673086,1227.9,1224.9,0.54065215]
[1760124098609,1.94673086,1227.9,1224.4,0.60606306]
[1760124098815,1.94673086,1227.9,1224.5,0.54034096]
[1760124099010,1.94673086,1227.9,1224.6,0.54034096]
[1760124099313,1.94673086,1227.9,1224.1,0.60606306]
[1760124099514,1.94673086,1227.9,1224.2,0.53990309]
[1760124099711,1.94673086,1227.9,1224.3,0.53990309]
[1760124099919,1.94673086,1227.9,1224.4,0.53990309]
[1760124100211,1.94673086,1228.0,1223.9,0.74804042]
[1760124100412,1.94673086,1228.0,1224.0,0.53941165]
[1760124100610,1.94673086,1228.1,1224.1,0.53941165]
[1760124100815,1.94673086,1228.1,1224.2,0.53941165]
[1760124101013,1.94673086,1228.1,1224.3,0.53941165]
[1760124101210,1.94673086,1228.1,1223.9,0.74804042]
[1760124101211,1.94673086,1228.1,1224.4,0.53941165]
[1760124101412,1.94673086,1228.1,1224.5,0.53941165]
[1760124101616,1.94673086,1228.3,1223.9,0.74804042]
[1760124101819,1.94673086,1228.3,1224.0,0.53887325]
[1760124102017,1.94673086,1228.3,1224.1,0.53887325]
[1760124102217,1.94673086,1228.2,1224.2,0.53887325]
[1760124102416,1.94673086,1228.2,1224.3,0.53887325]
[1760124102619,2.72981337,1228.8,1224.4,0.53887325]
[1760124102818,2.72981337,1228.8,1224.5,0.53887325]
[1760124103016,2.72981337,1228.8,1223.7,0.74805317]
[1760124103218,1.94673086,1229.3,1223.8,1.1445059]
[1760124103517,1.94673086,1229.0,1224.0,0.60606306]
[1760124103717,1.94673086,1229.0,1224.1,0.53844284]
[1760124103918,1.94673086,1228.8,1224.2,0.53844284]
[1760124104118,1.94673086,1228.8,1224.3,0.53844284]
[1760124104323,1.94673086,1229.0,1224.4,0.53844284]
[1760124104624,1.94673086,1229.0,1224.5,0.53844284]
[1760124104823,1.94673086,1229.0,1224.6,0.53844284]
[1760124105020,1.94673086,1229.0,1224.7,0.53844284]
[1760124105228,1.94673086,1229.0,1224.1,0.60606306]
[1760124105428,1.94673086,1229.1,1224.2,0.53755535]
[1760124105625,1.94673086,1229.1,1224.3,0.53755535]
[1760124105926,1.94673086,1228.9,1224.4,0.53755535]
[1760124106122,1.94673086,1228.9,1224.5,0.53755535]
[1760124106323,1.94673086,1228.9,1223.8,0.60606306]
[1760124106623,2.87159175,1229.5,1223.9,0.53736084]
[1760124106624,1.94673086,1228.8,1223.9,0.53736084]
[1760124106822,1.94673086,1228.8,1224.0,0.53736084]
[1760124107022,1.94673086,1229.0,1224.1,0.53736084]
[1760124107222,1.94673086,1229.0,1224.2,0.53736084]
[1760124107521,1.94673086,1228.5,1223.7,0.60606306]
[1760124107725,1.94673086,1228.5,1223.8,0.53712639]
[1760124107922,1.94673086,1228.5,1223.9,0.53712639]
[1760124108126,1.94673086,1227.6,1223.5,0.748041]
[1760124108321,1.94673086,1227.6,1223.6,0.53710984]
[1760124108522,1.94673086,1227.6,1223.7,0.53710984]
[1760124108723,1.94673086,1227.6,1223.8,0.53710984]
[1760124109027,1.94673086,1227.6,1223.9,0.53680877]
[1760124109228,1.94673086,1227.6,1223.5,0.14197794]
[1760124109426,1.94673086,1227.6,1223.6,0.5364182]
[1760124109727,1.94673086,1227.5,1223.7,0.5364182]
[1760124109926,1.94673086,1227.5,1223.5,0.14197794]
[1760124110124,1.94673086,1227.5,1223.6,0.53642852]
[1760124110525,2.72981337,1227.9,1223.1,0.8075515]
[1760124110730,2.72981337,1227.9,1223.2,0.53617427]
[1760124110930,2.72981337,1227.9,1222.7,0.60606306]
[1760124111129,1.94673086,1227.4,1222.8,0.53621682]
[1760124111329,1.94673086,1227.4,1222.9,0.53621682]
[1760124111628,2.72981337,1227.9,1223.0,0.5354321]
[1760124111830,1.1836557,1226.9,1223.1,0.5354321]
[1760124112130,1.1836557,1226.9,1223.2,0.5354321]
[1760124112328,1.1836557,1226.9,1222.7,0.60606306]
[1760124112527,1.1836557,1227.1,1222.8,1.13926889]
[1760124112830,1.1836557,1227.4,1223.1,0.60606306]
[1760124113032,1.1836557,1227.5,1223.3,0.60606306]
[1760124113330,1.1836557,1227.6,1223.6,0.60606306]
[1760124113526,1.1836557,1227.6,1223.8,0.60606306]
[1760124113729,1.1836557,1227.8,1223.9,1.13926889]
[1760124113927,1.1836557,1228.0,1224.0,0.53320583]
[1760124114227,1.1836557,1228.4,1224.4,0.60606306]
[1760124114430,1.1836557,1229.0,1224.5,0.53320583]
[1760124114627,1.1836557,1228.8,1224.6,0.53320583]
[1760124114828,1.1836557,1228.8,1223.7,0.8075515]
[1760124114829,1.1836557,1228.2,1224.0,0.60606306]
[1760124115032,1.1836557,1228.1,1224.1,0.53273132]
[1760124115229,1.1836557,1228.0,1224.2,0.53273132]
[1760124115429,1.1836557,1228.0,1224.3,0.53273132]
[1760124115628,1.1836557,1228.0,1224.4,0.53273132]
[1760124115929,1.1836557,1227.8,1223.8,0.60606306]
[1760124116132,1.1836557,1227.8,1223.9,0.53274908]
[1760124116330,1.1836557,1227.8,1224.0,0.53274908]
[1760124116534,1.1836557,1227.8,1224.1,0.53274908]
[1760124116834,1.1836557,1228.2,1224.2,0.53274908]
[1760124117135,1.1836557,1228.1,1223.5,0.60606306]
[1760124117435,1.1836557,1228.1,1223.6,0.53259912]
[1760124117635,1.1836557,1227.9,1223.7,0.53259912]
[1760124117835,1.1836557,1227.8,1223.8,0.53259912]
[1760124118132,1.1836557,1227.2,1223.1,0.60606306]
[1760124118335,1.1836557,1227.2,1223.2,0.53248717]
[1760124118531,1.1836557,1227.1,1223.3,0.53248717]
[1760124118731,1.1836557,1227.1,1223.4,0.53248717]
[1760124119034,1.1836557,1227.1,1223.5,0.53248717]
[1760124119232,1.1836557,1226.8,1222.8,0.60606306]
[1760124119535,1.1836557,1226.7,1222.9,0.53224405]
[1760124119734,1.1836557,1226.7,1223.0,0.53224405]
[1760124119933,1.1836557,1226.8,1222.5,0.74815607]
[1760124120133,1.1836557,1226.9,1222.8,0.60606306]
[1760124120430,1.1836557,1227.4,1223.2,0.60606306]
[1760124120632,1.1836557,1227.6,1223.3,1.13833493]
[1760124120831,1.1836557,1227.6,1222.5,0.14209301]
[1760124120832,1.1836557,1227.8,1223.4,0.53227187]
[1760124121034,1.1836557,1227.8,1222.5,0.14209301]
[1760124121035,1.1836557,1228.2,1223.0,0.60606306]
[1760124121331,1.1836557,1227.7,1223.1,0.53233155]
[1760124121531,1.1836557,1227.6,1223.2,0.53233155]
[1760124121731,1.1836557,1227.6,1222.5,0.14209301]
[1760124122035,1.1836557,1227.1,1222.8,0.60606306]
[1760124122232,1.1836557,1227.1,1223.0,0.60606306]
[1760124122535,1.1836557,1227.6,1223.2,0.60606306]
[1760124122735,1.1836557,1228.0,1223.3,1.13804007]
[1760124122936,1.1836557,1227.8,1223.4,0.53197701]
[1760124123232,1.1836557,1228.0,1223.5,0.53197701]
[1760124123430,2.72981337,1229.1,1223.6,0.53197701]
[1760124123431,1.1836557,1227.9,1223.6,0.53197701]
[1760124123634,1.1836557,1228.0,1223.7,0.53197701]
[1760124123832,1.1836557,1228.0,1223.1,0.60606306]
[1760124124033,1.1836557,1227.6,1223.2,1.13374933]
[1760124124238,1.1836557,1228.1,1223.6,0.60606306]
[1760124124435,1.1836557,1227.9,1223.8,0.60606306]
[1760124124636,1.1836557,1228.4,1223.9,0.52768627]
[1760124124837,1.1836557,1228.7,1224.0,0.52768627]
[1760124125035,1.1836557,1228.7,1224.1,0.52768627]
[1760124125233,1.1836557,1228.7,1224.2,0.52768627]
[1760124125432,1.1836557,1228.7,1224.3,0.52768627]
[1760124125637,1.1836557,1228.7,1224.4,0.52768627]
[1760124125833,1.1836557,1228.7,1224.5,0.52768627]
[1760124126137,1.1836557,1228.7,1223.9,0.60606306]
[1760124126338,1.1836557,1228.4,1224.1,0.60606306]
[1760124126638,1.1836557,1228.7,1224.4,0.60606306]
[1760124126934,1.1836557,1228.7,1224.5,0.52771144]
[1760124127137,1.1836557,1228.8,1224.6,0.52771144]
[1760124127340,1.1836557,1228.8,1224.7,0.52771144]
[1760124127637,1.1836557,1228.8,1224.8,0.52771144]
[1760124127838,1.1836557,1228.7,1224.3,0.60606306]
[1760124128035,1.1836557,1228.6,1224.4,0.52768645]
[1760124128239,1.1836557,1228.6,1224.5,0.52768645]
[1760124128440,1.1836557,1228.6,1224.6,0.52768645]
[1760124128640,1.1836557,1228.6,1224.7,0.52768645]
[1760124128841,1.1836557,1228.6,1224.2,0.60606306]
[1760124129037,1.1836557,1228.6,1224.3,0.52789316]
[1760124129241,1.1836557,1228.5,1224.4,0.52789316]
[1760124129437,1.1836557,1228.5,1224.5,0.52789316]
[1760124129638,1.1836557,1228.5,1224.6,0.52789316]
[1760124129836,1.1836557,1228.5,1224.7,0.52789316]
[1760124130039,1.1836557,1228.5,1224.2,0.60606306]
[1760124130241,1.1836557,1228.5,1224.3,0.52801018]
[1760124130443,1.1836557,1228.5,1224.4,0.52801018]
[1760124130643,1.1836557,1228.5,1224.5,0.52801018]
[1760124130944,1.1836557,1228.2,1224.1,0.60606306]
[1760124131144,1.1836557,1228.2,1224.2,0.52822691]
[1760124131347,1.1836557,1228.8,1224.3,0.52822691]
[1760124131544,1.1836557,1229.0,1224.4,0.52822691]
[1760124131840,1.1836557,1228.9,1224.5,0.52822691]
[1760124132044,1.1836557,1228.9,1224.6,0.52822691]
[1760124132240,1.1836557,1228.9,1224.7,0.52822691]
[1760124132543,1.1836557,1228.5,1224.1,0.60606306]
[1760124132742,1.1836557,1228.5,1224.2,0.52837156]
[1760124132945,1.1836557,1228.4,1224.3,0.52837156]
[1760124133144,1.1836557,1228.3,1224.4,0.52837156]
[1760124133342,1.1836557,1228.3,1224.5,0.52837156]
[1760124133543,1.1836557,1228.1,1224.2,0.60606306]
[1760124133848,1.1836557,1228.1,1224.3,0.52850667]
[1760124134045,1.1836557,1228.2,1224.4,0.52850667]
[1760124134250,1.1836557,1228.3,1224.5,0.52850667]
[1760124134447,1.1836557,1228.5,1224.6,0.52850667]
[1760124134651,1.1836557,1228.5,1224.7,0.52850667]
[1760124134947,1.1836557,1228.7,1224.8,0.52850667]
[1760124135150,1.1836557,1228.8,1224.9,0.52850667]
[1760124135450,1.1836557,1228.8,1225.0,0.52850667]
[1760124135651,1.1836557,1228.8,1225.1,0.52858602]
[1760124135946,1.1836557,1228.8,1224.5,0.60606306]
[1760124136147,1.1836557,1228.6,1224.6,0.52861517]
[1760124136350,1.1836557,1228.4,1224.7,0.52861517]
[1760124136551,1.1836557,1228.2,1224.3,0.60606306]
[1760124136851,1.1836557,1228.2,1224.4,0.52885748]
[1760124137049,1.1836557,1228.0,1224.5,0.52885748]
[1760124137253,1.1836557,1228.0,1224.6,0.52899676]
[1760124137449,1.1836557,1228.0,1224.2,0.60606306]
[1760124137651,1.1836557,1228.0,1224.3,0.52914462]
[1760124137855,1.1836557,1227.7,1223.8,0.60606306]
[1760124138059,1.1836557,1227.5,1223.9,0.52926032]
[1760124138257,2.72981337,1229.4,1223.4,0.60606306]
[1760124138258,1.1836557,1227.4,1223.4,0.60606306]
[1760124138552,1.1836557,1227.4,1223.5,1.13543328]
[1760124138753,1.1836557,1227.4,1223.6,0.52937022]
[1760124138956,1.1836557,1227.1,1223.7,0.52937022]
[1760124139262,1.1836557,1227.1,1223.3,0.60606306]
[1760124139559,1.1836557,1227.1,1223.4,0.52945961]
[1760124139858,1.1836557,1227.5,1223.5,0.52945961]
[1760124140158,1.1836557,1227.5,1223.6,0.52945961]
[1760124140355,1.1836557,1227.1,1223.7,0.52945961]
[1760124140659,1.1836557,1227.0,1223.1,0.60606306]
[1760124140859,1.1836557,1227.0,1223.2,0.52960913]
[1760124141060,1.1836557,1227.0,1223.3,0.52960913]
[1760124141358,1.1836557,1227.0,1223.4,0.52960913]
[1760124141558,1.1836557,1227.0,1223.5,0.52960913]
[1760124141756,1.1836557,1227.3,1223.6,0.52960913]
[1760124142059,1.1836557,1227.2,1223.1,0.60606306]
[1760124142257,2.72981337,1229.1,1223.2,0.52968104]
[1760124142258,1.1836557,1227.4,1223.2,0.52968104]
[1760124142459,1.1836557,1227.2,1223.3,1.1357441]
[1760124142660,1.1836557,1226.9,1223.4,0.52968104]
[1760124142855,1.1836557,1227.0,1223.5,0.52968104]
[1760124143061,1.1836557,1227.1,1223.6,0.52968104]
[1760124143257,1.1836557,1227.3,1223.7,0.52968104]
[1760124143459,1.1836557,1227.8,1223.8,0.52968104]
[1760124143659,1.1836557,1228.3,1223.9,0.52968104]
[1760124143856,1.1836557,1227.9,1224.0,0.52968104]
[1760124144058,1.1836557,1227.6,1224.1,0.52968104]
[1760124144261,1.1836557,1227.6,1224.2,0.52968104]
[1760124144462,1.1836557,1227.6,1224.3,0.52968104]
[1760124144662,1.1836557,1227.7,1223.8,0.60606306]
[1760124144962,1.1836557,1227.7,1224.0,0.60606306]
[1760124145159,1.1836557,1228.0,1224.1,1.13594512]
[1760124145357,1.1836557,1228.0,1224.2,1.13594512]
[1760124145557,1.1836557,1228.0,1224.3,0.52988206]
[1760124145756,1.1836557,1228.1,1224.4,0.52988206]
[1760124145960,1.1836557,1227.9,1224.5,0.52988206]
[1760124146160,1.1836557,1228.1,1224.6,0.52988206]
[1760124146361,1.1836557,1228.1,1224.7,0.52988206]
[1760124146657,1.1836557,1228.1,1224.8,0.52988206]
[1760124146861,1.1836557,1228.2,1224.9,0.52988206]
[1760124147055,1.1836557,1228.2,1224.4,0.60606306]
[1760124147256,1.1836557,1228.2,1224.5,0.53011229]
[1760124147460,1.1836557,1228.1,1224.6,0.53011229]
[1760124147658,1.1836557,1228.1,1224.7,0.53011229]
[1760124147857,1.1836557,1228.3,1224.8,0.53011229]
[1760124148063,1.1836557,1228.3,1224.9,0.53011229]
[1760124148359,1.1836557,1228.5,1225.0,0.53011229]
[1760124148563,1.1836557,1228.5,1225.1,0.53011229]
[1760124148759,1.1836557,1228.5,1225.2,0.53011229]
[1760124149061,1.1836557,1228.6,1225.3,0.53011229]
[1760124149259,1.1836557,1228.5,1224.8,0.60606306]
[1760124149463,1.1836557,1228.4,1224.9,0.53114547]
[1760124149758,1.1836557,1228.4,1225.0,0.53114547]
[1760124149962,1.1836557,1228.3,1225.1,0.53114547]
[1760124150161,1.1836557,1227.9,1224.6,0.60606306]
[1760124150361,1.1836557,1227.7,1224.7,0.53129321]
[1760124150559,1.1836557,1227.7,1224.8,0.53129321]
[1760124150860,1.1836557,1227.7,1224.9,0.53129321]
[1760124151062,1.1836557,1227.7,1224.5,0.60606306]
[1760124151361,1.1836557,1227.6,1224.6,0.53165231]
[1760124151658,1.1836557,1227.6,1224.7,0.53165231]
[1760124151857,1.1836557,1227.7,1224.8,0.53165231]
[1760124152062,1.1836557,1227.8,1224.9,0.53165231]
[1760124152261,1.1836557,1227.8,1225.0,0.53165231]
[1760124152460,1.1836557,1227.8,1224.5,0.60606306]
[1760124152657,1.1836557,1227.8,1224.6,0.5324053]
[1760124152862,1.1836557,1227.7,1224.7,0.5324053]
[1760124153061,1.1836557,1227.6,1224.8,0.5324053]
[1760124153261,1.1836557,1227.5,1224.3,0.60606306]
[1760124153461,1.1836557,1227.5,1224.4,0.53288059]
[1760124153659,1.1836557,1227.5,1224.3,0.60606306]
[1760124153660,1.1836557,1227.5,1224.5,0.53288059]
[1760124153861,1.94673086,1228.5,1224.6,0.53288059]
[1760124154064,1.94673086,1228.6,1224.7,0.53288059]
[1760124154265,1.94673086,1228.6,1224.8,0.53288059]
[1760124154460,1.94673086,1228.4,1224.1,0.60606306]
[1760124154664,1.94673086,1228.4,1224.2,0.54183482]
[1760124154960,1.94673086,1228.4,1224.3,0.54183482]
[1760124155163,1.94673086,1228.2,1224.4,0.54183482]
[1760124155361,1.94673086,1228.2,1224.1,0.60606306]
[1760124155362,1.94673086,1228.2,1224.5,0.54183482]
[1760124155566,1.94673086,1227.8,1224.1,0.60606306]
[1760124155860,1.94673086,1227.8,1224.2,0.54198126]
[1760124156068,1.94673086,1228.5,1224.3,0.54198126]
[1760124156362,1.94673086,1228.5,1224.4,0.54198126]
[1760124156566,1.94673086,1228.5,1224.5,0.54198126]
[1760124156768,1.94673086,1228.5,1224.6,0.54198126]
[1760124156966,1.94673086,1228.5,1224.7,0.54198126]
[1760124157161,1.94673086,1228.9,1224.8,0.54198126]
[1760124157366,1.94673086,1228.9,1224.2,0.60606306]
[1760124157566,1.94673086,1228.9,1224.3,0.54197443]
[1760124157763,1.94673086,1228.9,1224.4,0.54197443]
[1760124158062,1.94673086,1228.8,1224.5,0.54197443]
[1760124158261,1.94673086,1228.8,1224.6,0.54197443]
[1760124158564,1.94673086,1228.8,1224.0,0.60606306]
[1760124158761,1.94673086,1228.8,1224.1,0.54199679]
[1760124158968,1.94673086,1228.8,1224.2,0.54199679]
[1760124159270,1.94673086,1229.3,1224.3,0.54199679]
[1760124159468,1.94673086,1229.3,1224.4,0.54199679]
[1760124159664,1.94673086,1229.0,1224.5,0.54199679]
[1760124159963,1.94673086,1229.0,1224.6,0.54199679]
[1760124160163,1.94673086,1229.0,1224.7,0.54199679]
[1760124160367,1.94673086,1229.0,1224.8,0.54199679]
[1760124160567,1.94673086,1229.0,1224.2,0.60606306]
[1760124160867,1.94673086,1228.9,1224.3,1.14799732]
[1760124161069,1.94673086,1228.9,1224.4,0.54193426]
[1760124161265,1.94673086,1228.9,1224.5,0.54193426]
[1760124161467,1.94673086,1228.9,1224.6,0.54193426]
[1760124161666,1.94673086,1228.8,1224.7,0.54193426]
[1760124161870,1.94673086,1228.8,1224.8,0.54193426]
[1760124162167,1.94673086,1229.3,1224.2,0.60606306]
[1760124162371,1.94673086,1229.3,1224.3,0.54198033]
[1760124162670,1.94673086,1229.0,1224.4,0.54198033]
[1760124162871,1.94673086,1229.0,1224.5,0.54198033]
[1760124163071,1.94673086,1229.0,1224.6,0.54198033]
[1760124163365,1.94673086,1229.0,1224.7,0.54198033]
[1760124163566,1.94673086,1229.0,1224.1,0.60606306]
[1760124163770,1.94673086,1229.0,1224.2,0.54201101]
[1760124163965,1.94673086,1229.0,1224.3,0.54201101]
[1760124164170,1.94673086,1229.0,1224.4,0.54201101]
[1760124164373,0.14177838,1229.5,1224.9,0.60606306]
[1760124164565,0.14177838,1229.5,1225.0,0.54201101]
[1760124164769,0.14177838,1229.5,1225.1,0.54201101]
[1760124165066,0.14177838,1229.5,1225.2,0.54201101]
[1760124165272,0.14177838,1229.5,1225.3,0.54201101]
[1760124165571,0.14177838,1229.5,1225.4,0.54201101]
[1760124165769,0.14177838,1229.5,1225.5,0.54201101]
[1760124165967,2.08850924,1229.5,1225.6,0.54201101]
[1760124166168,2.08850924,1229.5,1225.2,0.60606306]
[1760124166371,1.94673086,1229.3,1225.3,1.14733501]
[1760124166572,1.94673086,1229.3,1225.4,0.54127195]
[1760124166769,2.08850924,1229.5,1225.5,0.54127195]
[1760124166971,2.08850924,1229.5,1225.6,0.54127195]
[1760124167172,2.08850924,1229.5,1225.7,0.54127195]
[1760124167370,2.08850924,1229.5,1225.8,0.54127195]
[1760124167572,2.08850924,1229.5,1225.3,0.60606306]
[1760124167874,1.94673086,1229.3,1225.4,0.54099688]
[1760124168171,1.94673086,1229.3,1225.5,0.54099688]
[1760124168369,1.94673086,1229.4,1225.6,0.54099688]
[1760124168572,1.94673086,1229.4,1225.2,0.60606306]
[1760124168873,2.08850924,1229.5,1225.3,0.54082834]
[1760124169068,2.08850924,1229.5,1225.2,0.60606306]
[1760124169069,2.08850924,1229.5,1225.4,0.54082834]
[1760124169272,2.08850924,1229.5,1225.5,0.54082834]
[1760124169469,2.08850924,1229.5,1225.6,0.54082834]
[1760124169668,2.08850924,1229.5,1225.7,0.54082834]
[1760124169870,0.14177838,1229.5,1225.8,0.54082834]
[1760124170073,0.14177838,1229.5,1225.9,0.54082834]
[1760124170270,0.14177838,1229.5,1226.0,0.54062405]
[1760124170469,0.14177838,1229.5,1225.6,0.60606306]
[1760124170674,0.14177838,1229.5,1225.7,0.54039692]
[1760124170874,0.14177838,1229.5,1225.8,0.54039692]
[1760124171074,0.14177838,1229.5,1225.9,0.54039692]
[1760124171275,0.14177838,1229.5,1225.0,0.60606306]
[1760124171476,0.14177838,1229.5,1225.1,0.54089955]
[1760124171675,1.94673086,1229.2,1225.2,0.54089955]
[1760124171875,1.94673086,1229.2,1225.3,0.54089955]
[1760124172074,1.94673086,1228.5,1224.8,0.60606306]
[1760124172278,1.94673086,1228.5,1224.3,0.60606306]
[1760124172573,1.94673086,1228.5,1224.4,0.54166282]
[1760124172777,1.94673086,1228.0,1224.5,0.54166282]
[1760124172976,1.94673086,1228.0,1224.6,0.54166282]
[1760124173276,1.94673086,1228.3,1224.2,0.60606306]
[1760124173576,1.94673086,1228.3,1224.3,0.54174624]
[1760124173872,1.94673086,1228.7,1224.4,0.54174624]
[1760124174075,1.94673086,1228.7,1224.5,0.54174624]
[1760124174377,1.94673086,1228.6,1224.6,0.54174624]
[1760124174578,1.94673086,1228.6,1224.1,0.60606306]
[1760124174777,1.94673086,1228.1,1224.2,0.5418088]
[1760124174978,1.94673086,1228.1,1224.3,0.5418088]
[1760124175174,1.94673086,1228.1,1224.4,0.5418088]
[1760124175375,1.94673086,1227.6,1223.9,0.60606306]
[1760124175577,1.94673086,1227.6,1224.0,0.54185198]
[1760124175874,1.94673086,1227.6,1224.1,0.54185198]
[1760124176074,1.94673086,1227.6,1224.2,0.54185198]
[1760124176277,1.94673086,1228.9,1224.3,0.54185198]
[1760124176476,1.94673086,1228.9,1224.4,0.54185198]
[1760124176778,1.94673086,1228.9,1224.5,0.54185198]
[1760124177077,1.94673086,1228.9,1224.6,0.54185198]
[1760124177277,1.94673086,1228.8,1223.9,0.60606306]
[1760124177478,1.94673086,1228.8,1224.0,1.14791549]
[1760124177673,1.94673086,1228.8,1224.1,0.54185243]
[1760124177973,1.94673086,1228.8,1224.2,0.54185243]
[1760124178174,1.94673086,1228.8,1224.3,0.54185243]
[1760124178377,1.94673086,1228.3,1224.4,0.54185243]
[1760124178577,1.94673086,1228.3,1223.9,0.60606306]
[1760124178778,1.94673086,1228.3,1224.0,0.54204348]
[1760124178978,1.94673086,1228.3,1224.1,0.54204348]
[1760124179178,1.94673086,1228.3,1224.2,0.54204348]
[1760124179378,1.94673086,1228.2,1224.3,0.54204348]
[1760124179574,1.94673086,1228.2,1224.4,0.54204348]
[1760124179778,1.94673086,1228.2,1224.0,0.60606306]
[1760124179980,1.94673086,1227.9,1224.1,0.5423485]
[1760124180176,1.94673086,1227.9,1224.2,0.5423485]
[1760124180381,1.94673086,1228.0,1224.3,0.5423485]
[1760124180579,1.94673086,1228.0,1224.4,0.5423485]
[1760124180778,1.94673086,1228.0,1223.8,0.60606306]
[1760124180976,1.94673086,1228.0,1223.9,0.54241539]
[1760124181181,1.94673086,1228.0,1223.3,0.60606306]
[1760124181379,1.94673086,1228.0,1223.4,0.54242093]
[1760124181579,1.94673086,1227.1,1223.5,0.54242093]
[1760124181779,1.94673086,1227.1,1223.6,0.54242093]
[1760124181979,1.94673086,1227.1,1223.7,0.54242093]
[1760124182177,1.94673086,1227.1,1223.2,0.60606306]
[1760124182381,1.94673086,1227.1,1223.3,0.54273409]
[1760124182577,1.94673086,1227.2,1223.4,0.54273409]
[1760124182777,1.94673086,1227.2,1223.5,0.54273409]
[1760124182981,1.94673086,1227.2,1223.1,0.60606306]
[1760124183281,1.94673086,1227.2,1223.2,0.54277949]
[1760124183578,1.94673086,1227.2,1223.3,0.54277949]
[1760124183776,1.94673086,1227.2,1223.4,0.54277949]
[1760124183979,1.94673086,1227.2,1223.5,0.54277949]
[1760124184180,1.94673086,1227.3,1223.6,0.54277949]
[1760124184382,1.94673086,1227.7,1223.7,0.54374406]
[1760124184579,1.94673086,1227.7,1223.2,0.60606306]
[1760124184777,1.94673086,1227.7,1223.3,0.54374406]
[1760124184980,1.94673086,1227.7,1223.4,0.54374406]
[1760124185283,1.94673086,1227.8,1223.5,0.54374406]
[1760124185483,1.94673086,1227.8,1223.6,0.54374406]
[1760124185684,1.94673086,1227.7,1223.7,0.54374406]
[1760124185880,1.94673086,1227.7,1223.8,0.54374406]
[1760124186079,1.94673086,1227.3,1223.9,0.54374406]
[1760124186281,1.94673086,1227.3,1223.3,0.60606306]
[1760124186481,1.94673086,1227.3,1223.4,0.54345046]
[1760124186684,1.94673086,1227.3,1223.5,0.54345046]
[1760124186879,1.94673086,1227.3,1223.0,0.60606306]
[1760124187084,1.94673086,1227.3,1223.1,0.54345704]
[1760124187283,1.94673086,1227.3,1223.2,0.54345704]
[1760124187485,1.94673086,1227.3,1223.3,0.54324162]
[1760124187685,1.94673086,1227.4,1223.4,0.54324162]
[1760124187885,1.94673086,1227.4,1223.5,0.54324162]
[1760124188086,1.94673086,1227.4,1223.6,0.54324162]
[1760124188280,1.94673086,1227.6,1223.1,0.6041873]
[1760124188485,1.94673086,1227.6,1223.2,0.54299574]
[1760124188782,1.94673086,1227.5,1223.3,0.54299574]
[1760124188982,1.94673086,1227.5,1223.4,0.54299574]
[1760124189184,1.94673086,1227.3,1223.5,0.54299574]
[1760124189385,1.94673086,1227.3,1223.6,0.54299574]
[1760124189586,1.94673086,1227.3,1223.2,0.6041873]
[1760124189885,1.94673086,1227.3,1223.3,0.54276405]
[1760124190186,1.94673086,1227.3,1223.4,0.54276405]
[1760124190482,1.94673086,1227.3,1223.5,0.54276405]
[1760124190688,1.94673086,1227.3,1223.1,0.6041873]
[1760124190982,1.94673086,1227.2,1223.2,0.54259022]
[1760124191188,1.94673086,1227.2,1223.3,0.54259022]
[1760124191381,4.67654423,1227.7,1223.4,0.54259022]
[1760124191582,1.94673086,1227.7,1222.8,0.6041873]
[1760124191783,1.94673086,1227.9,1222.9,0.54241171]
[1760124191982,1.94673086,1227.9,1223.0,0.54241171]
[1760124192187,1.94673086,1227.9,1223.1,0.54241171]
[1760124192483,1.94673086,1227.9,1223.2,0.54241171]
[1760124192783,1.94673086,1227.9,1223.3,0.54200877]